bitfinex-derivatives/quotes_BTCF0:USTF0_20250211
["timestamp","ask_amount","ask_price","bid_price","bid_amount"]
[1739232461914,0.002,97699.0,97697.0,0.6074237]
[1739232462116,0.17162917,97700.0,97699.0,0.2046796]
[1739232463817,0.17162917,97700.0,97699.0,1.2470796]
[1739232464118,0.17162917,97700.0,97699.0,1.3168396]
[1739232464719,0.17562917,97700.0,97699.0,1.3188396]
[1739232465020,0.2045614,97756.0,97711.0,0.0511633]
[1739232465209,0.3608,97748.0,97734.0,0.2046063]
[1739232465411,0.0309,97750.0,97734.0,0.4267063]
[1739232465719,0.0309,97750.0,97734.0,0.4913063]
[1739232465915,0.2045801,97747.0,97734.0,0.4913063]
[1739232466120,0.2045801,97747.0,97734.0,0.8516063]
[1739232466413,0.24665905,97759.0,97734.0,0.8516063]
[1739232466414,0.2045575,97758.0,97734.0,0.8516063]
[1739232466619,0.24613904,97759.0,97734.0,0.8516063]
[1739232466814,0.2045824,97746.0,97734.0,0.8516063]
[1739232467022,0.2045824,97746.0,97734.0,0.8193063]
[1739232467222,0.3608,97752.0,97733.0,0.3608]
[1739232467517,0.2355063,97734.0,97726.0,0.2046226]
[1739232467706,0.0624,97734.0,97725.0,0.00015351]
[1739232468025,0.3608,97726.0,97725.0,0.00015351]
[1739232468817,0.2046437,97717.0,97714.0,0.18223921]
[1739232469018,0.0314,97716.0,97714.0,0.18223921]
[1739232469618,0.2360456,97716.0,97714.0,0.03253921]
[1739232469818,0.06984,97715.0,97708.0,0.24428033]
[1739232470023,0.5654587,97709.0,97708.0,0.14448033]
[1739232470220,0.5654587,97709.0,97708.0,0.07091033]
[1739232470415,0.8654587,97709.0,97708.0,0.07091033]
[1739232471015,0.8654587,97709.0,97708.0,0.04093]
[1739232471613,0.8654587,97709.0,97708.0,0.04193]
[1739232471810,0.8654587,97709.0,97708.0,0.04293]
[1739232473314,0.8654587,97709.0,97708.0,0.05111]
[1739232473923,0.9352187,97709.0,97708.0,0.05111]
[1739232474118,0.61523379,97709.0,97708.0,0.05111]
[1739232474323,0.68499379,97709.0,97708.0,0.05111]
[1739232476426,0.98499379,97709.0,97708.0,0.05111]
[1739232476928,0.6352187,97709.0,97708.0,0.05111]
[1739232477129,0.9352187,97709.0,97708.0,0.05111]
[1739232477626,1.0352187,97709.0,97708.0,0.05111]
[1739232478024,0.83056,97709.0,97696.0,0.00818]
[1739232478232,0.5654838,97697.0,97696.0,0.00818]
[1739232479119,0.8654838,97697.0,97696.0,0.00818]
[1739232479525,0.8714838,97697.0,97696.0,0.00918]
[1739232480023,0.8714838,97697.0,97696.0,0.01018]
[1739232480419,0.9411638,97697.0,97696.0,0.01018]
[1739232480628,0.2047027,97688.0,97687.0,0.00015351]
[1739232480820,0.5655027,97688.0,97687.0,0.00015351]
[1739232481020,0.6608,97688.0,97664.0,0.0616]
[1739232481218,0.7216,97671.0,97633.0,0.00153634]
[1739232481531,0.3608,97639.0,97633.0,0.00153634]
[1739232481729,0.4306,97639.0,97633.0,0.00153634]
[1739232481932,0.4306,97639.0,97637.0,0.00819]
[1739232482626,0.0698,97639.0,97637.0,0.00819]
[1739232482827,0.0001536,97648.0,97638.0,0.001]
[1739232483032,0.0001536,97648.0,97642.0,0.2047984]
[1739232483228,0.0001536,97648.0,97643.0,0.2047958]
[1739232484729,0.3623366,97662.0,97643.0,0.001]
[1739232485028,0.3623366,97662.0,97650.0,0.2047807]
[1739232485632,0.3623366,97662.0,97643.0,0.002]
[1739232486028,0.3694902,97662.0,97643.0,0.002]
[1739232486228,0.0086902,97662.0,97643.0,0.002]
[1739232486531,0.0236902,97662.0,97655.0,0.2047711]
[1739232486730,0.0236902,97662.0,97656.0,0.0614]
[1739232487527,0.0166902,97662.0,97656.0,0.0614]
[1739232487733,0.0236902,97662.0,97656.0,0.0614]
[1739232487923,0.0236902,97662.0,97657.0,0.033]
[1739232489226,0.0151536,97662.0,97657.0,0.033]
[1739232489431,0.0071536,97662.0,97657.0,0.033]
[1739232489623,0.0221536,97662.0,97657.0,0.033]
[1739232490431,0.0221536,97662.0,97657.0,0.034]
[1739232491038,0.2047637,97659.0,97657.0,0.034]
[1739232492033,0.0221536,97662.0,97657.0,0.034]
[1739232492424,0.002,97659.0,97657.0,0.034]
[1739232492624,0.017,97659.0,97657.0,0.035]
[1739232492828,0.0001536,97662.0,97661.0,0.2047593]
[1739232493133,0.0001536,97662.0,97661.0,0.2303493]
[1739232493329,0.0151536,97662.0,97661.0,0.2303493]
[1739232494231,0.0081536,97662.0,97661.0,0.2313493]
[1739232494720,0.0081536,97662.0,97661.0,0.2323493]
[1739232495734,0.3608,97675.0,97672.0,0.2047353]
[1739232495937,0.3608,97675.0,97662.0,0.2221]
[1739232496134,0.3608,97675.0,97672.0,0.2047356]
[1739232496434,0.3608,97675.0,97672.0,0.2047354]
[1739232497029,0.3608,97675.0,97673.0,0.2047336]
[1739232498233,0.3608,97675.0,97673.0,0.2057336]
[1739232499329,0.3608,97675.0,97673.0,0.2139236]
[1739232500035,0.3608,97675.0,97673.0,0.2149236]
[1739232500732,0.3608,97677.0,97673.0,0.01019]
[1739232500939,0.3608,97677.0,97674.0,0.204731]
[1739232501124,0.3608,97677.0,97675.0,0.2047286]
[1739232501325,0.00015276,97683.0,97681.0,0.2047174]
[1739232502741,0.00015276,97683.0,97681.0,0.2057174]
[1739232503039,0.3608,97689.0,97681.0,0.2057174]
[1739232503040,0.3608,97689.0,97684.0,0.2047107]
[1739232503341,0.3608,97689.0,97685.0,0.0607]
[1739232503535,0.3608,97689.0,97686.0,0.2047065]
[1739232503734,0.3608,97689.0,97687.0,0.2047032]
[1739232504837,0.3608,97689.0,97687.0,0.2057032]
[1739232505138,0.3608,97689.0,97687.0,0.001]
[1739232505340,0.3608,97689.0,97685.0,0.0607]
[1739232505534,0.3608,97689.0,97687.0,0.2057036]
[1739232506146,0.3608,97689.0,97688.0,0.0325]
[1739232507536,0.19217205,97704.0,97688.0,0.0325]
[1739232507844,0.75764225,97704.0,97693.0,0.2046903]
[1739232508234,0.54414106,97704.0,97688.0,0.0335]
[1739232508439,0.18334106,97704.0,97700.0,0.2046767]
[1739232508641,0.18334106,97704.0,97702.0,0.2046717]
[1739232509147,0.18334106,97704.0,97693.0,0.001]
[1739232509148,0.28487713,97709.0,97703.0,0.2046707]
[1739232509335,0.28487713,97709.0,97693.0,0.001]
[1739232509530,0.28487713,97709.0,97700.0,0.001]
[1739232509736,0.28487713,97709.0,97704.0,0.2046689]
[1739232510040,0.28487713,97709.0,97705.0,0.0317]
[1739232511030,0.28487713,97709.0,97705.0,0.2363669]
[1739232511744,0.28487713,97709.0,97705.0,0.2383669]
[1739232512235,0.10153607,97709.0,97705.0,0.2383669]
[1739232512437,0.10153607,97709.0,97707.0,0.204661]
[1739232512637,0.10153607,97709.0,97708.0,0.02928369]
[1739232513942,0.10153607,97709.0,97708.0,0.03028369]
[1739232514945,0.10153607,97709.0,97708.0,0.03128369]
[1739232515540,0.10153607,97709.0,97708.0,0.03946369]
[1739232515739,0.10153607,97709.0,97708.0,0.24412449]
[1739232519449,0.1,97709.0,97708.0,0.24412449]
[1739232520443,0.1,97709.0,97708.0,0.26970449]
[1739232521042,0.1,97709.0,97708.0,0.85210449]
[1739232522349,0.1,97709.0,97708.0,0.89210449]
[1739232524655,0.1,97709.0,97708.0,0.85210449]
[1739232524853,0.1,97709.0,97708.0,0.61816]
[1739232525057,0.1,97709.0,97708.0,0.25686]
[1739232525348,0.1,97709.0,97708.0,0.03576]
[1739232526254,0.1,97709.0,97708.0,0.03476]
[1739232526456,0.1,97709.0,97708.0,0.03376]
[1739232526645,0.1,97709.0,97708.0,0.03476]
[1739232527050,0.1,97709.0,97708.0,0.03576]
[1739232535172,0.1,97709.0,97708.0,0.2404208]
[1739232535970,0.18334106,97733.0,97708.0,0.73606]
[1739232536177,0.18334106,97733.0,97728.0,0.2046189]
[1739232537577,0.18334106,97733.0,97728.0,0.2127989]
[1739232538383,0.18334106,97733.0,97728.0,0.2137989]
[1739232538681,0.18334106,97733.0,97728.0,0.21375824]
[1739232538976,0.06968,97748.0,97728.0,0.21375824]
[1739232539177,0.2742577,97748.0,97728.0,0.21375824]
[1739232539572,0.06968,97748.0,97728.0,0.21475824]
[1739232539876,0.2045831,97746.0,97728.0,0.21475824]
[1739232540676,0.2045831,97746.0,97728.0,0.24033824]
[1739232540876,0.06968,97748.0,97728.0,0.03576]
[1739232541081,0.36233562,97729.0,97728.0,0.03576]
[1739232541581,0.36233562,97729.0,97719.0,0.00015352]
[1739232541582,0.2046351,97721.0,97719.0,0.00015352]
[1739232541787,0.69423562,97729.0,97707.0,0.24359386]
[1739232541788,0.3608,97720.0,97707.0,0.24359386]
[1739232541980,0.3608,97710.0,97707.0,0.24359386]
[1739232542881,0.3608,97710.0,97707.0,0.25093386]
[1739232543087,0.3608,97710.0,97708.0,0.0311]
[1739232543383,0.06968,97715.0,97708.0,0.0311]
[1739232544280,0.00015325,97718.0,97707.0,0.25994386]
[1739232544487,0.3608,97708.0,97707.0,0.25994386]
[1739232544689,0.3608,97708.0,97707.0,0.01735]
[1739232544986,0.5654608,97708.0,97707.0,0.01735]
[1739232545182,0.5654608,97708.0,97707.0,0.01635]
[1739232545377,0.5654608,97708.0,97707.0,0.01535]
[1739232545778,0.5674608,97708.0,97707.0,0.01635]
[1739232546182,0.5694608,97708.0,97707.0,0.01635]
[1739232550886,0.5674608,97708.0,97707.0,0.01635]
[1739232551089,0.6379808,97708.0,97707.0,0.01635]
[1739232551484,0.6369808,97708.0,97707.0,0.01635]
[1739232551682,0.6379808,97708.0,97707.0,0.01735]
[1739232555390,0.3628,97708.0,97707.0,0.01735]
[1739232557391,0.3688,97708.0,97707.0,0.01735]
[1739232557583,0.3728,97708.0,97707.0,0.01735]
[1739232558292,0.3678,97708.0,97707.0,0.01635]
[1739232558497,0.3728,97708.0,97707.0,0.01735]
[1739232573100,0.42257326,97708.0,97707.0,0.01735]
[1739232574406,0.42257326,97708.0,97707.0,0.00056435]
[1739232575814,0.2046776,97700.0,97699.0,0.00015352]
[1739232576000,0.5654776,97700.0,97699.0,0.00015352]
[1739232577209,0.5774776,97700.0,97699.0,0.00215352]
[1739232577915,0.5784776,97700.0,97699.0,0.00215352]
[1739232578414,0.9392776,97700.0,97699.0,0.00215352]
[1739232579701,0.9322776,97700.0,97699.0,0.00115352]
[1739232579902,0.9392776,97700.0,97699.0,0.00215352]
[1739232580107,0.94843007,97700.0,97699.0,0.00215352]
[1739232581516,0.22683007,97700.0,97699.0,0.00215352]
[1739232581717,0.94843007,97700.0,97699.0,0.00215352]
[1739232582914,0.99820333,97700.0,97699.0,0.00215352]
[1739232586420,1.182148,97700.0,97699.0,0.00215352]
[1739232588924,0.99820333,97700.0,97699.0,0.00215352]
[1739232594429,1.06776333,97700.0,97699.0,0.00215352]
[1739232594928,0.34616333,97700.0,97699.0,0.00215352]
[1739232595127,1.06776333,97700.0,97699.0,0.00215352]
[1739232603822,0.43272573,97700.0,97699.0,0.00215352]
[1739232604017,0.06936,97709.0,97702.0,0.2046719]
[1739232604330,0.01946,97709.0,97702.0,0.2046719]
[1739232604523,0.3608,97704.0,97699.0,0.00215352]
[1739232605028,0.3608,97704.0,97699.0,0.20683172]
[1739232605231,0.3608,97704.0,97702.0,0.001]
[1739232605427,0.3608,97704.0,97702.0,0.002]
[1739232605932,0.3608,97704.0,97699.0,0.00015352]
[1739232606227,0.3688,97704.0,97699.0,0.00215352]
[1739232606634,0.3688,97704.0,97702.0,0.001]
[1739232607532,0.5734704,97704.0,97702.0,0.001]
[1739232608425,0.3688,97704.0,97699.0,0.00215352]
[1739232608627,0.2046741,97702.0,97699.0,0.00115352]
[1739232609238,0.36332001,97704.0,97699.0,0.00115352]
[1739232609429,0.3608,97704.0,97699.0,0.00115352]
[1739232609625,0.3608,97704.0,97702.0,0.001]
[1739232609626,0.3628,97704.0,97702.0,0.001]
[1739232610022,0.3628,97704.0,97699.0,0.00115352]
[1739232610228,0.2046776,97700.0,97699.0,0.00215352]
[1739232611937,0.2046776,97700.0,97699.0,0.00015352]
[1739232612529,0.2066776,97700.0,97699.0,0.00115352]
[1739232612925,0.2066776,97700.0,97699.0,0.00215352]
[1739232615930,0.21589006,97700.0,97699.0,0.00215352]
[1739232618830,0.01121246,97700.0,97699.0,0.00215352]
[1739232620037,0.08077246,97700.0,97699.0,0.00215352]
[1739232620539,0.08073246,97700.0,97699.0,0.00215352]
[1739232634042,0.071,97700.0,97699.0,0.20683322]
[1739232634245,0.002,97700.0,97699.0,0.20683322]
[1739232635545,0.002,97700.0,97699.0,0.20583322]
[1739232635750,0.3608,97705.0,97701.0,0.2046744]
[1739232636951,0.3628,97705.0,97701.0,0.2056744]
[1739232638250,0.3628,97705.0,97701.0,0.2066744]
[1739232639747,0.3628,97705.0,97701.0,0.002]
[1739232643354,0.3628,97705.0,97703.0,0.2046695]
[1739232643550,0.00015325,97718.0,97704.0,0.032]
[1739232643755,0.00015325,97718.0,97716.0,0.2046427]
[1739232643961,0.00015325,97718.0,97717.0,0.0319]
[1739232645353,0.00015325,97718.0,97717.0,0.0329]
[1739232646949,0.00015325,97718.0,97717.0,0.0339]
[1739232652354,0.00015325,97718.0,97717.0,0.256]
[1739232658254,0.00015325,97718.0,97717.0,0.556]
[1739232660465,0.00015325,97718.0,97717.0,0.256]
[1739232663170,0.00015325,97718.0,97717.0,0.6163]
[1739232674567,5e-08,97718.0,97717.0,0.9963]
[1739232674763,0.06908,97760.0,97747.0,0.2045774]
[1739232674976,0.06908,97760.0,97741.0,0.3608]
[1739232674977,0.0305,97756.0,97741.0,0.3608]
[1739232675276,0.0305,97756.0,97748.0,0.2045756]
[1739232676076,0.0305,97756.0,97751.0,0.2045707]
[1739232677073,0.0305,97756.0,97748.0,0.002]
[1739232677379,0.0305,97756.0,97753.0,0.2045662]
[1739232677975,0.0305,97756.0,97748.0,0.002]
[1739232678475,0.0305,97756.0,97748.0,0.001]
[1739232678679,0.0305,97756.0,97751.0,0.002]
[1739232679281,0.0305,97756.0,97751.0,0.001]
[1739232679869,0.0305,97756.0,97748.0,0.002]
[1739232680580,0.0305,97756.0,97751.0,0.001]
[1739232681381,0.0305,97756.0,97751.0,0.002]
[1739232682084,0.0305,97756.0,97751.0,0.001]
[1739232682678,0.0305,97756.0,97751.0,0.002]
[1739232686194,0.0305,97756.0,97751.0,0.2065694]
[1739232687083,0.0305,97756.0,97754.0,0.204564]
[1739232688283,0.0305,97756.0,97754.0,0.205564]
[1739232688875,0.0305,97756.0,97754.0,0.206564]
[1739232691586,0.42964,97767.0,97754.0,0.002]
[1739232691789,0.032,97766.0,97756.0,0.2045598]
[1739232691993,0.032,97766.0,97754.0,0.002]
[1739232691994,0.032,97766.0,97763.0,0.204545]
[1739232692693,0.00060001,97767.0,97763.0,0.204545]
[1739232692993,0.00930684,97773.0,97763.0,0.204545]
[1739232693179,0.2528791,97777.0,97764.0,0.5824]
[1739232693180,0.1840791,97777.0,97764.0,0.5824]
[1739232693379,0.0510961,97841.0,97764.0,0.5824]
[1739232693380,0.3608,97834.0,97776.0,0.3608]
[1739232693589,8.84244,98007.0,97808.0,0.7216]
[1739232693590,0.4005192,97864.0,97808.0,0.7216]
[1739232693781,0.39999919,97864.0,97863.0,0.2043367]
[1739232694094,0.39999919,97864.0,97863.0,0.5646367]
[1739232694886,0.39999919,97864.0,97863.0,0.3603]
[1739232695293,0.39999919,97864.0,97858.0,0.3603]
[1739232695590,0.3608,97859.0,97854.0,0.00015334]
[1739232696194,1.38,97858.0,97854.0,0.00015334]
[1739232696388,1.38,97858.0,97831.0,0.3608]
[1739232696389,1.38,97858.0,97834.0,0.2043968]
[1739232696604,0.3608,97848.0,97835.0,0.2043932]
[1739232696894,0.07232,97857.0,97839.0,0.3608]
[1739232697096,1.38,97858.0,97839.0,0.3608]
[1739232697289,0.07232,97857.0,97839.0,0.3608]
[1739232697485,0.07232,97857.0,97839.0,0.36095334]
[1739232697886,0.07232,97857.0,97839.0,0.56533904]
[1739232698186,0.07232,97857.0,97854.0,0.001]
[1739232698386,1.38015275,97858.0,97854.0,0.001]
[1739232698387,0.00015275,97858.0,97854.0,0.001]
[1739232698693,0.00015275,97858.0,97841.0,0.2043824]
[1739232698891,1.4522,97857.0,97841.0,0.2043824]
[1739232699101,0.03215275,97858.0,97856.0,0.204351]
[1739232700792,0.03215275,97858.0,97841.0,0.001]
[1739232700991,0.03215275,97858.0,97849.0,0.2043647]
[1739232701293,1.38,97857.0,97849.0,0.2043647]
[1739232701492,1.38,97857.0,97854.0,0.001]
[1739232701794,0.07392,97856.0,97840.0,0.2043836]
[1739232701995,0.3608,97846.0,97840.0,0.2043836]
[1739232702191,0.3608,97846.0,97839.0,0.00015334]
[1739232704094,0.3608,97846.0,97840.0,0.001]
[1739232704301,0.07388,97845.0,97840.0,0.001]
[1739232704595,0.07388,97845.0,97839.0,0.00115334]
[1739232705090,0.07388,97845.0,97840.0,0.001]
[1739232705593,0.07588,97845.0,97840.0,0.002]
[1739232705794,0.07788,97845.0,97840.0,0.001]
[1739232706298,0.07788,97845.0,97840.0,0.002]
[1739232707699,0.0736,97844.0,97840.0,0.002]
[1739232708704,0.07352,97843.0,97840.0,0.002]
[1739232710001,0.2043827,97841.0,97840.0,0.002]
[1739232710304,0.2043827,97841.0,97839.0,1e-08]
[1739232710508,0.2043827,97841.0,97840.0,0.001]
[1739232710705,0.2043827,97841.0,97839.0,1e-08]
[1739232710898,1.38,97840.0,97839.0,1e-08]
[1739232711404,1.68,97840.0,97839.0,1e-08]
[1739232712190,0.2044022,97832.0,97800.0,0.3608]
[1739232712395,0.3608,97817.0,97800.0,0.3608]
[1739232712594,0.07336,97816.0,97800.0,0.3608]
[1739232713106,0.07336,97816.0,97801.0,0.2044658]
[1739232714208,0.07536,97816.0,97801.0,0.2044658]
[1739232714605,0.07336,97816.0,97801.0,0.2164658]
[1739232714795,0.07536,97816.0,97801.0,0.2164658]
[1739232714996,0.07316,97815.0,97801.0,0.042]
[1739232715203,0.07316,97815.0,97809.0,0.3608]
[1739232715613,0.07316,97815.0,97812.0,0.2044429]
[1739232716607,0.002,97816.0,97812.0,0.2044429]
[1739232717601,0.002,97816.0,97812.0,0.2084429]
[1739232717814,0.003,97815.0,97812.0,0.2084429]
[1739232718411,0.003,97816.0,97812.0,0.2084429]
[1739232718811,0.43432001,97817.0,97812.0,0.2084429]
[1739232719116,0.003,97815.0,97812.0,0.2084429]
[1739232719812,0.003,97815.0,97812.0,0.2044429]
[1739232720008,0.003,97815.0,97812.0,0.004]
[1739232720604,0.43432001,97817.0,97812.0,0.004]
[1739232720801,0.002,97816.0,97812.0,0.004]
[1739232721216,0.43436001,97817.0,97812.0,0.004]
[1739232721409,0.002,97815.0,97812.0,0.004]
[1739232722012,0.43432001,97817.0,97812.0,0.004]
[1739232722013,0.002,97816.0,97812.0,0.004]
[1739232722413,0.43440001,97817.0,97812.0,0.004]
[1739232722613,0.2044391,97814.0,97812.0,0.004]
[1739232722804,0.002,97815.0,97812.0,0.004]
[1739232723005,0.2044391,97814.0,97812.0,0.004]
[1739232723816,0.2044391,97814.0,97812.0,0.001]
[1739232724006,0.006,97815.0,97812.0,0.001]
[1739232724208,0.004,97815.0,97812.0,0.001]
[1739232724606,0.004,97814.0,97812.0,0.001]
[1739232724812,0.011,97814.0,97812.0,0.002]
[1739232725409,0.004,97814.0,97812.0,0.002]
[1739232726211,0.011,97815.0,97812.0,0.002]
[1739232727006,0.007,97814.0,97812.0,0.001]
[1739232727218,0.011,97814.0,97812.0,0.002]
[1739232727520,0.011,97814.0,97812.0,0.001]
[1739232727719,0.004,97814.0,97812.0,0.002]
[1739232728114,0.3648,97814.0,97812.0,0.001]
[1739232728315,0.2044412,97813.0,97812.0,0.002]
[1739232729726,0.2084412,97813.0,97812.0,0.002]
[1739232730310,0.2084412,97813.0,97812.0,0.001]
[1739232730516,0.2084412,97813.0,97812.0,0.002]
[1739232731020,0.2154412,97813.0,97812.0,0.002]
[1739232737926,2.3170412,97813.0,97812.0,0.002]
[1739232738611,2.3170412,97813.0,97798.0,0.00015334]
[1739232738612,2.4126,97813.0,97798.0,0.00015334]
[1739232738823,2.4126,97813.0,97782.0,0.1802059]
[1739232738824,0.3608,97800.0,97782.0,0.1802059]
[1739232739020,0.3608,97785.0,97782.0,0.1802059]
[1739232739222,0.0716,97784.0,97782.0,0.1802059]
[1739232739922,0.0716,97784.0,97780.0,0.24398557]
[1739232740122,0.0716,97784.0,97782.0,0.001]
[1739232740623,0.0786,97784.0,97782.0,0.001]
[1739232741730,0.0936,97784.0,97782.0,0.002]
[1739232743222,0.022,97784.0,97782.0,0.002]
[1739232743531,0.022,97784.0,97783.0,0.2045039]
[1739232743731,0.022,97784.0,97783.0,0.2976039]
[1739232745123,0.017,97784.0,97783.0,0.2986039]
[1739232747925,0.022,97784.0,97783.0,0.2986039]
[1739232748433,0.022,97784.0,97783.0,0.3086039]
[1739232748434,0.01769332,97784.0,97783.0,0.3086039]
[1739232748623,0.01769332,97784.0,97783.0,0.3076039]
[1739232748826,0.021,97784.0,97783.0,0.3686039]
[1739232749138,0.021,97784.0,97783.0,0.6291039]
[1739232749426,0.021,97784.0,97783.0,0.6381039]
[1739232749632,0.022,97784.0,97783.0,0.6391039]
[1739232750130,0.022,97784.0,97783.0,0.5891039]
[1739232750530,0.022,97784.0,97783.0,1.1112039]
[1739232751027,0.015,97784.0,97783.0,1.1112039]
[1739232751232,0.014,97784.0,97783.0,1.1122039]
[1739232751631,0.014,97784.0,97783.0,1.1112039]
[1739232751935,0.007,97784.0,97783.0,0.8112039]
[1739232752821,0.00015334,97793.0,97783.0,0.9067]
[1739232753132,0.07124,97820.0,97792.0,0.3608]
[1739232753431,0.3608,97828.0,97821.0,0.2044238]
[1739232753628,0.07128,97824.0,97821.0,0.2044238]
[1739232754131,0.3608,97828.0,97817.0,0.3608]
[1739232754337,0.3608,97828.0,97827.0,0.2044119]
[1739232754536,0.07151334,97832.0,97827.0,0.2044119]
[1739232754737,0.07151334,97832.0,97818.0,0.0621]
[1739232754738,0.007,97828.0,97820.0,0.2044263]
[1739232754927,0.007,97828.0,97818.0,0.0621]
[1739232755130,0.009,97824.0,97821.0,0.2054228]
[1739232755527,0.009,97824.0,97821.0,0.001]
[1739232755928,0.016,97828.0,97820.0,0.001]
[1739232756129,0.016,97828.0,97820.0,0.2054254]
[1739232756130,0.009,97828.0,97820.0,0.2054254]
[1739232756435,0.01,97828.0,97823.0,0.2044182]
[1739232756735,0.01,97828.0,97826.0,0.204414]
[1739232756937,0.07128,97827.0,97826.0,0.204414]
[1739232757738,0.07124,97827.0,97826.0,0.204414]
[1739232758534,0.08024,97827.0,97826.0,0.205414]
[1739232759540,0.08012,97827.0,97826.0,0.205414]
[1739232759839,0.08012,97827.0,97826.0,0.206414]
[1739232759840,0.08712,97827.0,97826.0,0.206414]
[1739232760137,0.08712,97827.0,97826.0,0.002]
[1739232761338,0.08716169,97827.0,97826.0,0.002]
[1739232769835,0.44796169,97827.0,97826.0,0.002]
[1739232770037,0.65237359,97827.0,97810.0,0.2605]
[1739232770342,0.2702142,97826.0,97810.0,0.2605]
[1739232770537,0.3035142,97826.0,97810.0,0.2605]
[1739232771135,0.0991,97826.0,97809.0,0.3608]
[1739232771331,0.2044263,97821.0,97813.0,0.00115334]
[1739232771939,0.3608,97818.0,97813.0,0.00115334]
[1739232773636,0.3608,97818.0,97815.0,0.2044364]
[1739232774044,0.3718,97818.0,97817.0,0.2044328]
[1739232774238,0.011,97818.0,97817.0,0.2044328]
[1739232774649,0.007,97818.0,97817.0,0.2044328]
[1739232774847,0.018,97818.0,97817.0,0.2044328]
[1739232775151,0.018,97818.0,97817.0,0.2054328]
[1739232776146,0.018,97818.0,97817.0,0.001]
[1739232776334,0.007,97818.0,97817.0,0.002]
[1739232776535,0.017,97818.0,97817.0,0.002]
[1739232778253,0.5822307,97818.0,97817.0,0.002]
[1739232779953,0.2044358,97816.0,97813.0,0.00015334]
[1739232780142,0.2044358,97816.0,97811.0,0.18168442]
[1739232780641,0.2044358,97816.0,97810.0,0.2605]
[1739232781451,0.2114358,97816.0,97813.0,0.001]
[1739232781841,0.2044414,97813.0,97810.0,0.001]
[1739232782043,0.5652443,97812.0,97810.0,0.001]
[1739232782443,0.5652443,97812.0,97808.0,0.18168442]
[1739232782444,0.2044495,97809.0,97808.0,0.18168442]
[1739232782842,0.20446,97804.0,97803.0,0.00015334]
[1739232783053,0.6355,97804.0,97803.0,0.00015334]
[1739232784052,0.6545,97804.0,97803.0,0.00215334]
[1739232786554,0.66408603,97804.0,97803.0,0.00215334]
[1739232794765,1.02488603,97804.0,97803.0,0.00215334]
[1739232799268,0.82042603,97804.0,97777.0,0.2045148]
[1739232799463,0.3608,97790.0,97777.0,0.2145148]
[1739232799666,0.06964,97789.0,97777.0,0.01]
[1739232799864,0.3608,97781.0,97777.0,0.01]
[1739232800166,0.3608,97781.0,97770.0,0.0315]
[1739232800769,0.2045124,97779.0,97777.0,0.001]
[1739232801270,0.2045143,97778.0,97777.0,0.001]
[1739232801673,0.2045143,97778.0,97770.0,0.0315]
[1739232801872,0.3608,97773.0,97770.0,0.0315]
[1739232802064,0.06956,97772.0,97770.0,0.0315]
[1739232803274,0.08056,97772.0,97770.0,0.0325]
[1739232803975,0.08756,97772.0,97770.0,0.0335]
[1739232811178,0.3608,97771.0,97770.0,0.0335]
[1739232812268,0.3718,97771.0,97770.0,0.0335]
[1739232812667,0.3718,97771.0,97770.0,0.0325]
[1739232812874,0.3788,97771.0,97770.0,0.0335]
[1739232817484,0.3788,97771.0,97770.0,0.002]
[1739232820080,0.38862284,97771.0,97770.0,0.002]
[1739232824888,0.45766284,97771.0,97770.0,0.002]
[1739232834392,0.3788,97771.0,97770.0,0.002]
[1739232834591,0.018,97771.0,97770.0,0.002]
[1739232834890,0.08704,97771.0,97770.0,0.002]
[1739232835483,0.018,97771.0,97770.0,0.002]
[1739232839092,0.018,97771.0,97770.0,0.012]
[1739232839287,0.018,97771.0,97770.0,0.002]
[1739232840194,0.06884,97782.0,97780.0,0.2045095]
[1739232840498,0.06884,97782.0,97781.0,0.0333]
[1739232840692,0.06884,97782.0,97770.0,0.48552]
[1739232840893,0.06884,97782.0,97770.0,0.4846]
[1739232840894,0.3608,97780.0,97770.0,0.4846]
[1739232841094,0.03,97779.0,97770.0,0.4846]
[1739232841496,0.03,97779.0,97770.0,0.4836]
[1739232841699,0.2045149,97778.0,97770.0,0.001]
[1739232842392,0.2045149,97778.0,97765.0,0.2422459]
[1739232842590,0.3608,97772.0,97771.0,0.2422459]
[1739232844285,0.03,97779.0,97772.0,0.2045259]
[1739232844486,0.03,97779.0,97771.0,0.2422459]
[1739232845793,0.004,97772.0,97771.0,0.2432459]
[1739232845992,0.004,97772.0,97771.0,0.001]
[1739232846597,0.003,97779.0,97766.0,0.00015334]
[1739232846897,0.06904,97778.0,97774.0,0.2045211]
[1739232847894,0.06904,97778.0,97776.0,0.2045174]
[1739232848100,0.06904,97778.0,97771.0,0.002]
[1739232848101,0.3608,97780.0,97778.0,0.2045143]
[1739232848888,0.069,97782.0,97781.0,0.2045081]
[1739232849094,0.43,97791.0,97784.0,0.2045018]
[1739232849402,0.36132001,97791.0,97784.0,0.2045018]
[1739232849597,0.3608,97791.0,97784.0,0.2045018]
[1739232849799,0.0692,97795.0,97784.0,0.2045018]
[1739232850395,0.00415334,97785.0,97784.0,0.2055018]
[1739232850596,0.00415334,97785.0,97784.0,0.001]
[1739232850796,0.00315334,97785.0,97784.0,0.001]
[1739232850999,0.00715334,97785.0,97784.0,0.002]
[1739232852297,0.00415334,97785.0,97784.0,0.001]
[1739232852492,0.00715334,97785.0,97784.0,0.001]
[1739232853001,0.00315334,97785.0,97776.0,0.2045182]
[1739232853303,0.00715334,97785.0,97784.0,0.002]
[1739232854403,0.00715334,97785.0,97784.0,0.001]
[1739232855294,0.00715334,97785.0,97776.0,0.2055182]
[1739232855997,0.00715334,97785.0,97784.0,0.002]
[1739232856491,0.00315334,97785.0,97784.0,0.001]
[1739232856707,0.00715334,97785.0,97784.0,0.001]
[1739232856899,0.00715334,97785.0,97776.0,0.2055182]
[1739232857407,0.00715334,97785.0,97784.0,0.001]